[Event "Early-Titled-Tuesday-Blitz-February-27-2024"]
[Site "Chess.com"]
[Date "2024.02.27"]
[Round "9"]
[White "Honiex"]
[Black "alexrustemov"]
[Result "0-1"]
[WhiteElo "2560"]
[BlackElo "2826"]
[TimeControl "180+1"]
[EndTime "9:47:04 PST"]
[Termination "alexrustemov won by checkmate"]

1. Nc3 {[%clk 0:03:00.9]} 1... d5 {[%clk 0:02:58.7]} 2. e4 {[%clk 0:02:59.7]}
2... d4 {[%clk 0:02:58.2]} 3. Nce2 {[%clk 0:02:59.6]} 3... e5 {[%clk 0:02:58.8]}
4. c3 {[%clk 0:02:59.9]} 4... c5 {[%clk 0:02:53.6]} 5. Ng3 {[%clk 0:02:59.8]}
5... Be6 {[%clk 0:02:51.5]} 6. Bb5+ {[%clk 0:02:59.7]} 6... Nd7 {[%clk
0:02:49.5]} 7. Nf3 {[%clk 0:02:58.9]} 7... Bd6 {[%clk 0:02:45.7]} 8. b4 {[%clk
0:02:58.5]} 8... dxc3 {[%clk 0:02:40.8]} 9. dxc3 {[%clk 0:02:56.7]} 9... Qc7
{[%clk 0:02:32.8]} 10. Ng5 {[%clk 0:02:47.7]} 10... O-O-O {[%clk 0:02:21.2]} 11.
Nxe6 {[%clk 0:02:45.1]} 11... fxe6 {[%clk 0:02:21.2]} 12. O-O {[%clk 0:02:45.3]}
12... Ngf6 {[%clk 0:02:11.3]} 13. Be3 {[%clk 0:02:42]} 13... Kb8 {[%clk
0:02:08.7]} 14. Qb3 {[%clk 0:02:09]} 14... Rhe8 {[%clk 0:02:05.6]} 15. f3 {[%clk
0:02:05.9]} 15... Re7 {[%clk 0:01:59]} 16. Kh1 {[%clk 0:02:02.6]} 16... Rc8
{[%clk 0:01:57.2]} 17. Rfd1 {[%clk 0:01:57.8]} 17... a6 {[%clk 0:01:47.8]} 18.
Bxa6 {[%clk 0:01:48.6]} 18... c4 {[%clk 0:01:41.4]} 19. Bxc4 {[%clk 0:01:40.2]}
19... Qxc4 {[%clk 0:01:40.9]} 20. Qxc4 {[%clk 0:01:41.1]} 20... Rxc4 {[%clk
0:01:40.4]} 21. Rxd6 {[%clk 0:01:41.8]} 21... Rxc3 {[%clk 0:01:40.6]} 22. Nf1
{[%clk 0:01:23.7]} 22... Kc7 {[%clk 0:01:37.2]} 23. Rdd1 {[%clk 0:01:23.2]}
23... Re8 {[%clk 0:01:36.6]} 24. Rdc1 {[%clk 0:01:22.2]} 24... Rxc1 {[%clk
0:01:34.1]} 25. Rxc1+ {[%clk 0:01:23.1]} 25... Kd6 {[%clk 0:01:34.5]} 26. Nd2
{[%clk 0:01:18.7]} 26... Ra8 {[%clk 0:01:33.7]} 27. Rc2 {[%clk 0:01:15]} 27...
Ra4 {[%clk 0:01:31.7]} 28. Nc4+ {[%clk 0:00:56]} 28... Ke7 {[%clk 0:01:30]} 29.
Bc5+ {[%clk 0:00:17.6]} 29... Nxc5 {[%clk 0:01:21.7]} 30. bxc5 {[%clk
0:00:18.5]} 30... Nd7 {[%clk 0:01:21.4]} 31. Kg1 {[%clk 0:00:17.6]} 31... Nxc5
{[%clk 0:01:09.4]} 32. Nxe5 {[%clk 0:00:17.9]} 32... b6 {[%clk 0:01:06.7]} 33.
Nc4 {[%clk 0:00:17.9]} 33... Nd7 {[%clk 0:00:53.7]} 34. Kf2 {[%clk 0:00:17.2]}
34... b5 {[%clk 0:00:49.8]} 35. Ne3 {[%clk 0:00:17.3]} 35... Kd6 {[%clk
0:00:49.6]} 36. Ke2 {[%clk 0:00:16.9]} 36... Nc5 {[%clk 0:00:45.7]} 37. Nd1
{[%clk 0:00:15]} 37... e5 {[%clk 0:00:39.8]} 38. Nc3 {[%clk 0:00:14.7]} 38...
Ra5 {[%clk 0:00:35.9]} 39. Nd5 {[%clk 0:00:10.1]} 39... Ne6 {[%clk 0:00:34.9]}
40. Rb2 {[%clk 0:00:03.1]} 40... Nd4+ {[%clk 0:00:32.4]} 41. Kd3 {[%clk
0:00:03.2]} 41... Ra3+ {[%clk 0:00:31.1]} 42. Kd2 {[%clk 0:00:03.6]} 42... Kc5
{[%clk 0:00:31.4]} 43. Nc3 {[%clk 0:00:03.2]} 43... Kc4 {[%clk 0:00:27.7]} 44.
Nd5 {[%clk 0:00:03.3]} 44... g5 {[%clk 0:00:25.7]} 45. Ne3+ {[%clk 0:00:03.2]}
45... Kc5 {[%clk 0:00:25.5]} 46. Nc2 {[%clk 0:00:03.7]} 46... Nxc2 {[%clk
0:00:20.1]} 47. Rxc2+ {[%clk 0:00:04.6]} 47... Kd4 {[%clk 0:00:19.5]} 48. Rb2
{[%clk 0:00:05.3]} 48... Kc4 {[%clk 0:00:19.3]} 49. Rc2+ {[%clk 0:00:05.3]}
49... Kd4 {[%clk 0:00:19.4]} 50. Rb2 {[%clk 0:00:05.9]} 50... Kc5 {[%clk
0:00:19]} 51. Rc2+ {[%clk 0:00:05.5]} 51... Kb6 {[%clk 0:00:19.1]} 52. Ke2
{[%clk 0:00:05.1]} 52... h5 {[%clk 0:00:19]} 53. Kd2 {[%clk 0:00:04.8]} 53... b4
{[%clk 0:00:18.6]} 54. Ke2 {[%clk 0:00:05]} 54... Kb5 {[%clk 0:00:18.8]} 55. Kd2
{[%clk 0:00:04.6]} 55... h4 {[%clk 0:00:19.1]} 56. h3 {[%clk 0:00:04]} 56... Ka4
{[%clk 0:00:16.6]} 57. Ke2 {[%clk 0:00:04.4]} 57... Kb5 {[%clk 0:00:15.8]} 58.
Kd2 {[%clk 0:00:04.7]} 58... Ra8 {[%clk 0:00:15.4]} 59. Ke2 {[%clk 0:00:04.9]}
59... Rd8 {[%clk 0:00:15.3]} 60. Ke3 {[%clk 0:00:03.8]} 60... Ka4 {[%clk
0:00:15.4]} 61. Rc5 {[%clk 0:00:03]} 61... Rd1 {[%clk 0:00:13.7]} 62. Rxe5
{[%clk 0:00:02.6]} 62... Ra1 {[%clk 0:00:12]} 63. Rxg5 {[%clk 0:00:02.1]} 63...
Rxa2 {[%clk 0:00:12.3]} 64. e5 {[%clk 0:00:02.8]} 64... b3 {[%clk 0:00:12.2]}
65. e6 {[%clk 0:00:03.3]} 65... Ra1 {[%clk 0:00:11.3]} 66. Ke2 {[%clk
0:00:02.1]} 66... Rc1 {[%clk 0:00:10.4]} 67. e7 {[%clk 0:00:02.1]} 67... Rc8
{[%clk 0:00:10.4]} 68. Rd5 {[%clk 0:00:01.2]} 68... b2 {[%clk 0:00:09.1]} 69.
Rd1 {[%clk 0:00:01.8]} 69... Re8 {[%clk 0:00:08.7]} 70. Kf2 {[%clk 0:00:01.9]}
70... Rxe7 {[%clk 0:00:08.9]} 71. g3 {[%clk 0:00:02.6]} 71... Kb3 {[%clk
0:00:08.2]} 72. gxh4 {[%clk 0:00:02.7]} 72... Rc7 {[%clk 0:00:08.5]} 73. Rb1
{[%clk 0:00:01.8]} 73... Kc2 {[%clk 0:00:08.6]} 74. Rxb2+ {[%clk 0:00:02.2]}
74... Kxb2 {[%clk 0:00:09.5]} 75. Kg3 {[%clk 0:00:02.4]} 75... Kc3 {[%clk
0:00:10]} 76. Kg4 {[%clk 0:00:03]} 76... Kd4 {[%clk 0:00:10.6]} 77. h5 {[%clk
0:00:03.4]} 77... Ke5 {[%clk 0:00:11]} 78. Kg5 {[%clk 0:00:04]} 78... Rg7+
{[%clk 0:00:11.1]} 79. Kh6 {[%clk 0:00:04.3]} 79... Kf6 {[%clk 0:00:11.3]} 80.
f4 {[%clk 0:00:04.2]} 80... Rg3 {[%clk 0:00:11.4]} 81. h4 {[%clk 0:00:04.2]}
81... Rg4 {[%clk 0:00:11.1]} 82. Kh7 {[%clk 0:00:04.1]} 82... Kf7 {[%clk
0:00:11]} 83. h6 {[%clk 0:00:04.6]} 83... Rxf4 {[%clk 0:00:10.3]} 84. Kh8 {[%clk
0:00:04.9]} 84... Ra4 {[%clk 0:00:08.3]} 85. h5 {[%clk 0:00:04]} 85... Ra6
{[%clk 0:00:07]} 86. Kh7 {[%clk 0:00:04.7]} 86... Ra5 {[%clk 0:00:06.1]} 87. Kh8
{[%clk 0:00:04.3]} 87... Ra6 {[%clk 0:00:04.2]} 88. h7 {[%clk 0:00:04.3]} 88...
Ra8# {[%clk 0:00:04]} 0-1

[Event "Early-Titled-Tuesday-Blitz-February-27-2024"]
[Site "Chess.com"]
[Date "2024.02.27"]
[Round "9"]
[White "Susal_De_Silva"]
[Black "LLariMarc"]
[Result "1-0"]
[WhiteElo "2625"]
[BlackElo "2390"]
[TimeControl "180+1"]
[EndTime "9:47:19 PST"]
[Termination "Susal_De_Silva won on time"]

1. e4 {[%clk 0:03:00.2]} 1... e6 {[%clk 0:03:00.9]} 2. d4 {[%clk 0:02:59.9]}
2... d5 {[%clk 0:03:01.8]} 3. Nc3 {[%clk 0:03:00.5]} 3... Nf6 {[%clk 0:03:00.7]}
4. exd5 {[%clk 0:03:01.1]} 4... exd5 {[%clk 0:03:00.1]} 5. Bd3 {[%clk
0:03:01.3]} 5... c6 {[%clk 0:03:00]} 6. Nge2 {[%clk 0:03:01]} 6... Nbd7 {[%clk
0:02:58.6]} 7. O-O {[%clk 0:03:00.9]} 7... h6 {[%clk 0:02:57.9]} 8. Ng3 {[%clk
0:03:00.4]} 8... Be7 {[%clk 0:02:57.2]} 9. Nf5 {[%clk 0:02:58.9]} 9... O-O
{[%clk 0:02:57.7]} 10. Qf3 {[%clk 0:02:57.4]} 10... Re8 {[%clk 0:02:57.2]} 11.
Bxh6 {[%clk 0:02:53.9]} 11... g6 {[%clk 0:02:52.8]} 12. Nxe7+ {[%clk 0:02:52.1]}
12... Rxe7 {[%clk 0:02:51.7]} 13. Bg5 {[%clk 0:02:51.1]} 13... Kg7 {[%clk
0:02:47.2]} 14. Rae1 {[%clk 0:02:47.7]} 14... Rxe1 {[%clk 0:02:42.1]} 15. Rxe1
{[%clk 0:02:48.6]} 15... Nf8 {[%clk 0:02:40.2]} 16. Ne2 {[%clk 0:02:07.7]} 16...
N8h7 {[%clk 0:02:35]} 17. Bh4 {[%clk 0:02:05.7]} 17... g5 {[%clk 0:02:28.3]} 18.
Bg3 {[%clk 0:02:03.6]} 18... Bg4 {[%clk 0:02:27.2]} 19. Qe3 {[%clk 0:02:03.7]}
19... Nh5 {[%clk 0:02:15.7]} 20. h3 {[%clk 0:01:54.2]} 20... Bxe2 {[%clk
0:02:14.9]} 21. Rxe2 {[%clk 0:01:48.3]} 21... Nxg3 {[%clk 0:02:15.2]} 22. Qxg3
{[%clk 0:01:48.4]} 22... Qf6 {[%clk 0:02:15.1]} 23. Re5 {[%clk 0:01:48.1]} 23...
Rg8 {[%clk 0:02:10.8]} 24. Qg4 {[%clk 0:01:34.7]} 24... Qf4 {[%clk 0:01:37.2]}
25. Qxf4 {[%clk 0:01:32.9]} 25... gxf4 {[%clk 0:01:38.1]} 26. Bxh7 {[%clk
0:01:33.3]} 26... Kxh7 {[%clk 0:01:36.4]} 27. Rf5 {[%clk 0:01:30.7]} 27... Kg6
{[%clk 0:01:34.7]} 28. Rxf4 {[%clk 0:01:30.4]} 28... Re8 {[%clk 0:01:34.7]} 29.
Kf1 {[%clk 0:01:30.6]} 29... a5 {[%clk 0:01:32.1]} 30. h4 {[%clk 0:01:30.6]}
30... f6 {[%clk 0:01:30.5]} 31. g4 {[%clk 0:01:30.6]} 31... a4 {[%clk
0:01:28.6]} 32. f3 {[%clk 0:01:29.6]} 32... Ra8 {[%clk 0:01:14.7]} 33. h5+
{[%clk 0:01:27.6]} 33... Kg7 {[%clk 0:01:11.9]} 34. Rf5 {[%clk 0:01:23]} 34...
Ra6 {[%clk 0:01:09.7]} 35. f4 {[%clk 0:01:22.6]} 35... Rb6 {[%clk 0:01:09.9]}
36. b3 {[%clk 0:01:21.4]} 36... Rb4 {[%clk 0:00:59.7]} 37. g5 {[%clk 0:01:13.6]}
37... fxg5 {[%clk 0:00:59.1]} 38. fxg5 {[%clk 0:01:14.5]} 38... Rxd4 {[%clk
0:00:57.6]} 39. g6 {[%clk 0:00:33.4]} 39... Rh4 {[%clk 0:00:42.7]} 40. Rf7+
{[%clk 0:00:32.7]} 40... Kg8 {[%clk 0:00:40.8]} 41. Rh7 {[%clk 0:00:32.7]} 41...
Rh2 {[%clk 0:00:36]} 42. h6 {[%clk 0:00:29.4]} 42... a3 {[%clk 0:00:30.9]} 43.
Kg1 {[%clk 0:00:25.8]} 43... Rh5 {[%clk 0:00:30.7]} 44. Kf2 {[%clk 0:00:24.3]}
44... Rg5 {[%clk 0:00:28.1]} 45. Rg7+ {[%clk 0:00:24.3]} 45... Kh8 {[%clk
0:00:26.8]} 46. Ke3 {[%clk 0:00:24.5]} 46... Rh5 {[%clk 0:00:22.6]} 47. Rh7+
{[%clk 0:00:19.9]} 47... Kg8 {[%clk 0:00:23]} 48. Kd4 {[%clk 0:00:20.7]} 48...
b6 {[%clk 0:00:21.6]} 49. b4 {[%clk 0:00:21.1]} 49... Rg5 {[%clk 0:00:18.6]} 50.
Rg7+ {[%clk 0:00:20.8]} 50... Kf8 {[%clk 0:00:19.2]} 51. c3 {[%clk 0:00:17.5]}
51... Rh5 {[%clk 0:00:19.4]} 52. Kd3 {[%clk 0:00:15.2]} 52... Rxh6 {[%clk
0:00:18.9]} 53. Rb7 {[%clk 0:00:15.3]} 53... Rxg6 {[%clk 0:00:18.2]} 54. Rxb6
{[%clk 0:00:15.9]} 54... Ke7 {[%clk 0:00:17.9]} 55. Ra6 {[%clk 0:00:13.6]} 55...
Kd6 {[%clk 0:00:18.4]} 56. Rxa3 {[%clk 0:00:11.5]} 56... Rg3+ {[%clk 0:00:19]}
57. Kc2 {[%clk 0:00:12.2]} 57... d4 {[%clk 0:00:18.1]} 58. Rb3 {[%clk
0:00:11.1]} 58... dxc3 {[%clk 0:00:17]} 59. Rxc3 {[%clk 0:00:11.3]} 59... Rg2+
{[%clk 0:00:16.5]} 60. Kb3 {[%clk 0:00:11.7]} 60... Re2 {[%clk 0:00:13.1]} 61.
a4 {[%clk 0:00:11.6]} 61... Kd7 {[%clk 0:00:12]} 62. a5 {[%clk 0:00:11.8]} 62...
Re1 {[%clk 0:00:11.8]} 63. Rc2 {[%clk 0:00:11]} 63... Rb1+ {[%clk 0:00:11.4]}
64. Kc4 {[%clk 0:00:10.3]} 64... Kc7 {[%clk 0:00:10.3]} 65. Rf2 {[%clk
0:00:09.9]} 65... Re1 {[%clk 0:00:07.9]} 66. Rf7+ {[%clk 0:00:09.6]} 66... Kd6
{[%clk 0:00:08.3]} 67. Rf6+ {[%clk 0:00:07.4]} 67... Kc7 {[%clk 0:00:08]} 68.
Rf7+ {[%clk 0:00:07.9]} 68... Kd6 {[%clk 0:00:08.2]} 69. a6 {[%clk 0:00:04.4]}
69... Ra1 {[%clk 0:00:06.7]} 70. a7 {[%clk 0:00:04.4]} 70... Ke6 {[%clk
0:00:06.3]} 71. Rh7 {[%clk 0:00:03.3]} 71... Kd6 {[%clk 0:00:05.7]} 72. Kd4
{[%clk 0:00:03.7]} 72... Ra4 {[%clk 0:00:05.3]} 73. Kc3 {[%clk 0:00:03.9]} 73...
Ra3+ {[%clk 0:00:04.6]} 74. Kb2 {[%clk 0:00:04.3]} 74... Ra4 {[%clk 0:00:05.3]}
75. Kc1 {[%clk 0:00:04.7]} 75... Ra1+ {[%clk 0:00:04.9]} 76. Kd2 {[%clk
0:00:05.2]} 76... Ra2+ {[%clk 0:00:05]} 77. Ke3 {[%clk 0:00:05.6]} 77... Ra3+
{[%clk 0:00:05.3]} 78. Kf4 {[%clk 0:00:05.4]} 78... Ke6 {[%clk 0:00:04]} 79. Rg7
{[%clk 0:00:03.7]} 79... Ra4 {[%clk 0:00:04.1]} 80. Kg5 {[%clk 0:00:03.9]} 80...
Kd5 {[%clk 0:00:03.3]} 81. Kg6 {[%clk 0:00:03.7]} 81... Kc4 {[%clk 0:00:02.8]}
82. Kh7 {[%clk 0:00:02.9]} 82... Kxb4 {[%clk 0:00:02.7]} 83. Rc7 {[%clk
0:00:03]} 83... c5 {[%clk 0:00:02.7]} 84. Kg6 {[%clk 0:00:03.7]} 84... c4 {[%clk
0:00:02.5]} 85. Kf5 {[%clk 0:00:04.5]} 1-0

[Event "Early-Titled-Tuesday-Blitz-February-27-2024"]
[Site "Chess.com"]
[Date "2024.02.27"]
[Round "10"]
[White "WilsonPalencia21"]
[Black "IM_ArthurDW08"]
[Result "1-0"]
[WhiteElo "2578"]
[BlackElo "2799"]
[TimeControl "180+1"]
[EndTime "9:48:32 PST"]
[Termination "WilsonPalencia21 won by resignation"]

1. d4 {[%clk 0:03:00.9]} 1... Nf6 {[%clk 0:03:00]} 2. Nf3 {[%clk 0:03:00.8]}
2... g6 {[%clk 0:03:00.1]} 3. c4 {[%clk 0:03:00.9]} 3... Bg7 {[%clk 0:03:01]} 4.
Nc3 {[%clk 0:03:01]} 4... O-O {[%clk 0:03:01.9]} 5. e4 {[%clk 0:03:01.3]} 5...
d6 {[%clk 0:03:02.8]} 6. Be2 {[%clk 0:03:01.3]} 6... Nbd7 {[%clk 0:03:03.4]} 7.
h3 {[%clk 0:03:00.8]} 7... e5 {[%clk 0:03:04.3]} 8. d5 {[%clk 0:03:01]} 8... Nc5
{[%clk 0:03:04.7]} 9. Qc2 {[%clk 0:03:01.3]} 9... a5 {[%clk 0:03:04.5]} 10. Bg5
{[%clk 0:03:01.7]} 10... Bh6 {[%clk 0:03:04.3]} 11. Bxh6 {[%clk 0:03:01.5]} 1-0

[Event "Early-Titled-Tuesday-Blitz-February-27-2024"]
[Site "Chess.com"]
[Date "2024.02.27"]
[Round "10"]
[White "Savagelittlemole"]
[Black "Let_it_be_1"]
[Result "1-0"]
[WhiteElo "2466"]
[BlackElo "2539"]
[TimeControl "180+1"]
[EndTime "9:50:05 PST"]
[Termination "Savagelittlemole won by resignation"]

1. e4 {[%clk 0:02:56.6]} 1... e6 {[%clk 0:02:59.9]} 2. d4 {[%clk 0:02:56.6]}
2... d5 {[%clk 0:02:59.7]} 3. Nd2 {[%clk 0:02:57.2]} 3... Nf6 {[%clk 0:02:59.6]}
4. e5 {[%clk 0:02:57.6]} 4... Nfd7 {[%clk 0:03:00]} 5. Bd3 {[%clk 0:02:58.1]}
5... c5 {[%clk 0:03:00.3]} 6. c3 {[%clk 0:02:58.9]} 6... Nc6 {[%clk 0:03:00.6]}
7. Ne2 {[%clk 0:02:59.3]} 7... f6 {[%clk 0:03:01.2]} 8. Nf4 {[%clk 0:02:58.9]}
8... Qe7 {[%clk 0:03:01.2]} 9. Qh5+ {[%clk 0:02:58.2]} 9... Qf7 {[%clk
0:03:01.3]} 10. Qxf7+ {[%clk 0:02:57.4]} 10... Kxf7 {[%clk 0:03:01.1]} 11. exf6
{[%clk 0:02:46.4]} 11... gxf6 {[%clk 0:03:00.8]} 12. Ne2 {[%clk 0:02:41.8]}
12... Bd6 {[%clk 0:02:56.5]} 13. f4 {[%clk 0:02:40.2]} 13... f5 {[%clk
0:02:47.5]} 14. Nf3 {[%clk 0:02:37]} 14... Nf6 {[%clk 0:02:42.4]} 15. Ne5+
{[%clk 0:02:29.7]} 15... Ke7 {[%clk 0:02:41.8]} 16. Bb5 {[%clk 0:02:20.1]} 16...
Bd7 {[%clk 0:02:38.7]} 17. Bxc6 {[%clk 0:02:17.5]} 17... Bxc6 {[%clk 0:02:34.4]}
18. Be3 {[%clk 0:02:13.6]} 18... b6 {[%clk 0:02:32.1]} 19. Nxc6+ {[%clk
0:02:09.4]} 1-0

[Event "Early-Titled-Tuesday-Blitz-February-27-2024"]
[Site "Chess.com"]
[Date "2024.02.27"]
[Round "10"]
[White "SahibSinghKnight"]
[Black "agvania123"]
[Result "1-0"]
[WhiteElo "2555"]
[BlackElo "2388"]
[TimeControl "180+1"]
[EndTime "9:50:10 PST"]
[Termination "SahibSinghKnight won by resignation"]

1. e4 {[%clk 0:03:00.9]} 1... d5 {[%clk 0:02:59.1]} 2. exd5 {[%clk 0:03:00.3]}
2... Qxd5 {[%clk 0:03:00]} 3. Nc3 {[%clk 0:02:59.9]} 3... Qd8 {[%clk 0:03:00.6]}
4. d4 {[%clk 0:02:59.4]} 4... Nf6 {[%clk 0:03:01]} 5. Bc4 {[%clk 0:02:58.2]}
5... a6 {[%clk 0:03:01]} 6. a4 {[%clk 0:02:55.1]} 6... Nc6 {[%clk 0:02:59.8]} 7.
Nf3 {[%clk 0:02:53.9]} 7... Bf5 {[%clk 0:02:58]} 8. O-O {[%clk 0:02:44.6]} 8...
Nb4 {[%clk 0:02:52.6]} 9. Bb3 {[%clk 0:02:41]} 9... e6 {[%clk 0:02:52.8]} 10.
Re1 {[%clk 0:02:38.5]} 10... Be7 {[%clk 0:02:51.8]} 11. Ne5 {[%clk 0:02:35.2]}
11... O-O {[%clk 0:02:50.5]} 12. g4 {[%clk 0:02:34.5]} 12... Bg6 {[%clk
0:02:50.1]} 13. h4 {[%clk 0:02:34.3]} 13... h5 {[%clk 0:02:27.8]} 14. Nxg6
{[%clk 0:02:33.6]} 14... fxg6 {[%clk 0:02:28.7]} 15. Rxe6 {[%clk 0:02:33.2]}
15... Kh8 {[%clk 0:02:25.8]} 16. gxh5 {[%clk 0:02:28.6]} 16... gxh5 {[%clk
0:02:20]} 17. Rxf6 {[%clk 0:02:26.4]} 17... Rxf6 {[%clk 0:02:13.4]} 18. Qxh5+
{[%clk 0:02:26.1]} 18... Rh6 {[%clk 0:02:13.7]} 19. Bxh6 {[%clk 0:02:26.2]} 1-0

[Event "Early-Titled-Tuesday-Blitz-February-27-2024"]
[Site "Chess.com"]
[Date "2024.02.27"]
[Round "10"]
[White "carlocapau"]
[Black "DrCeltic"]
[Result "0-1"]
[WhiteElo "2468"]
[BlackElo "2585"]
[TimeControl "180+1"]
[EndTime "9:50:14 PST"]
[Termination "DrCeltic won by resignation"]

1. d4 {[%clk 0:03:00.9]} 1... Nf6 {[%clk 0:02:59.1]} 2. c4 {[%clk 0:03:00.5]}
2... c6 {[%clk 0:02:59.4]} 3. Nf3 {[%clk 0:02:59.4]} 3... d5 {[%clk 0:03:00.3]}
4. Nc3 {[%clk 0:02:59]} 4... dxc4 {[%clk 0:03:00.9]} 5. a4 {[%clk 0:02:58.3]}
5... Bf5 {[%clk 0:03:01.4]} 6. Ne5 {[%clk 0:02:57.8]} 6... e6 {[%clk 0:03:01.7]}
7. f3 {[%clk 0:02:57.4]} 7... Bb4 {[%clk 0:03:02.1]} 8. e4 {[%clk 0:02:56]} 8...
Bxe4 {[%clk 0:03:02.5]} 9. fxe4 {[%clk 0:02:56.2]} 9... Nxe4 {[%clk 0:03:03.4]}
10. Bd2 {[%clk 0:02:55]} 10... Qxd4 {[%clk 0:03:03]} 11. Nxe4 {[%clk 0:02:55.1]}
11... Qxe4+ {[%clk 0:03:03.9]} 12. Qe2 {[%clk 0:02:55.1]} 12... Bxd2+ {[%clk
0:03:04.8]} 13. Kxd2 {[%clk 0:02:55.7]} 13... Qd5+ {[%clk 0:03:05.7]} 14. Kc2
{[%clk 0:02:54.3]} 14... Na6 {[%clk 0:03:06]} 15. Nxc4 {[%clk 0:02:48.9]} 15...
O-O {[%clk 0:03:05.8]} 16. Qf3 {[%clk 0:02:37.3]} 16... Qc5 {[%clk 0:02:53.9]}
17. Qe3 {[%clk 0:02:32.4]} 17... Qf5+ {[%clk 0:02:52.9]} 18. Bd3 {[%clk
0:02:31.5]} 18... Nb4+ {[%clk 0:02:53.1]} 19. Kc3 {[%clk 0:02:27.8]} 19... Nxd3
{[%clk 0:02:53.3]} 20. Qxd3 {[%clk 0:02:27.7]} 20... Qc5 {[%clk 0:02:53.2]} 21.
Qe3 {[%clk 0:02:20.2]} 21... Qd5 {[%clk 0:02:50.4]} 22. g4 {[%clk 0:02:11]}
22... b5 {[%clk 0:02:49]} 23. Ne5 {[%clk 0:02:05.7]} 23... bxa4 {[%clk
0:02:47.6]} 24. Rxa4 {[%clk 0:02:00]} 24... Qxh1 {[%clk 0:02:47]} 0-1

[Event "Early-Titled-Tuesday-Blitz-February-27-2024"]
[Site "Chess.com"]
[Date "2024.02.27"]
[Round "10"]
[White "Janosik"]
[Black "manitodeplomo"]
[Result "0-1"]
[WhiteElo "2841"]
[BlackElo "2658"]
[TimeControl "180+1"]
[EndTime "9:50:21 PST"]
[Termination "manitodeplomo won by resignation"]

1. d4 {[%clk 0:02:34.3]} 1... Nf6 {[%clk 0:02:56.3]} 2. c4 {[%clk 0:02:33.9]}
2... e6 {[%clk 0:02:56.6]} 3. Nc3 {[%clk 0:02:33.7]} 3... Bb4 {[%clk 0:02:56.1]}
4. Qc2 {[%clk 0:02:34.2]} 4... O-O {[%clk 0:02:51]} 5. Nf3 {[%clk 0:02:34.3]}
5... c5 {[%clk 0:02:49.5]} 6. dxc5 {[%clk 0:02:33.8]} 6... Nc6 {[%clk
0:02:46.2]} 7. g3 {[%clk 0:02:34.7]} 7... Bxc5 {[%clk 0:02:39.6]} 8. Bg2 {[%clk
0:02:33.6]} 8... b6 {[%clk 0:02:39.7]} 9. O-O {[%clk 0:02:32.7]} 9... Bb7 {[%clk
0:02:40.1]} 10. a3 {[%clk 0:02:33]} 10... Rc8 {[%clk 0:02:38]} 11. Bf4 {[%clk
0:02:33]} 11... Be7 {[%clk 0:02:37.3]} 12. Rfd1 {[%clk 0:02:32.2]} 12... Na5
{[%clk 0:02:37.7]} 13. b3 {[%clk 0:02:29.5]} 13... d5 {[%clk 0:02:28]} 14. Ne5
{[%clk 0:02:27.8]} 14... Qe8 {[%clk 0:02:26]} 15. Nb5 {[%clk 0:01:53.6]} 15...
Qxb5 {[%clk 0:02:22.3]} 0-1

[Event "Early-Titled-Tuesday-Blitz-February-27-2024"]
[Site "Chess.com"]
[Date "2024.02.27"]
[Round "10"]
[White "chessamical"]
[Black "mertfelin"]
[Result "0-1"]
[WhiteElo "2173"]
[BlackElo "2322"]
[TimeControl "180+1"]
[EndTime "9:50:54 PST"]
[Termination "mertfelin won by resignation"]

1. d4 {[%clk 0:03:00.9]} 1... d5 {[%clk 0:03:00.3]} 2. c4 {[%clk 0:03:00.2]}
2... e6 {[%clk 0:03:00.7]} 3. Nc3 {[%clk 0:02:59.8]} 3... Be7 {[%clk 0:03:01.3]}
4. cxd5 {[%clk 0:02:58.5]} 4... exd5 {[%clk 0:03:01.9]} 5. Bf4 {[%clk
0:02:58.6]} 5... c6 {[%clk 0:03:02.3]} 6. e3 {[%clk 0:02:58.6]} 6... Bf5 {[%clk
0:03:01.8]} 7. Rc1 {[%clk 0:02:45]} 7... Nd7 {[%clk 0:02:59.5]} 8. Nxd5 {[%clk
0:02:29.4]} 8... cxd5 {[%clk 0:02:41.6]} 9. Bc7 {[%clk 0:02:28.6]} 9... Qc8
{[%clk 0:02:42.3]} 10. Bd6 {[%clk 0:02:21.5]} 10... Qd8 {[%clk 0:02:41.8]} 11.
Bc7 {[%clk 0:02:21.5]} 11... Bb4+ {[%clk 0:02:42.1]} 12. Ke2 {[%clk 0:02:12.9]}
12... Qe7 {[%clk 0:02:35.1]} 13. Qa4 {[%clk 0:02:04.7]} 13... Nf6 {[%clk
0:02:31]} 0-1

[Event "Early-Titled-Tuesday-Blitz-February-27-2024"]
[Site "Chess.com"]
[Date "2024.02.27"]
[Round "10"]
[White "HATilay"]
[Black "Caroexpert"]
[Result "1-0"]
[WhiteElo "2639"]
[BlackElo "2522"]
[TimeControl "180+1"]
[EndTime "9:51:15 PST"]
[Termination "HATilay won by resignation"]

1. e4 {[%clk 0:02:41.7]} 1... c6 {[%clk 0:02:59.5]} 2. d4 {[%clk 0:02:41.5]}
2... d5 {[%clk 0:02:59.9]} 3. e5 {[%clk 0:02:41.9]} 3... Bf5 {[%clk 0:02:58.8]}
4. Bd3 {[%clk 0:02:41.8]} 4... Bxd3 {[%clk 0:02:58.3]} 5. Qxd3 {[%clk
0:02:42.7]} 5... Qa5+ {[%clk 0:02:53.6]} 6. Nc3 {[%clk 0:02:42.4]} 6... e6
{[%clk 0:02:53.4]} 7. Ne2 {[%clk 0:02:42.3]} 7... Qa6 {[%clk 0:02:49.6]} 8. Qh3
{[%clk 0:02:42.3]} 8... c5 {[%clk 0:02:47.6]} 9. Nxd5 {[%clk 0:02:42.5]} 9...
exd5 {[%clk 0:02:36.1]} 10. Qc8+ {[%clk 0:02:43.4]} 10... Ke7 {[%clk 0:02:36.4]}
11. Qxc5+ {[%clk 0:02:43.8]} 11... Ke8 {[%clk 0:02:22.9]} 12. Qc8+ {[%clk
0:02:42.3]} 12... Ke7 {[%clk 0:02:23.1]} 13. Bd2 {[%clk 0:02:28]} 13... f6
{[%clk 0:01:59]} 14. Bb4+ {[%clk 0:02:26.6]} 14... Kf7 {[%clk 0:01:58.9]} 15.
Qxf8+ {[%clk 0:02:26.7]} 15... Kg6 {[%clk 0:01:59.4]} 16. Nf4+ {[%clk
0:02:25.2]} 16... Kf5 {[%clk 0:01:59.2]} 17. Qxg7 {[%clk 0:02:21.5]} 17... Nc6
{[%clk 0:01:52.7]} 18. f3 {[%clk 0:02:04.3]} 18... Nxd4 {[%clk 0:01:41.9]} 19.
Qg4+ {[%clk 0:01:59.1]} 19... Kxe5 {[%clk 0:01:41.2]} 20. Nd3+ {[%clk
0:01:59.3]} 20... Qxd3 {[%clk 0:01:41.1]} 21. cxd3 {[%clk 0:01:59.6]} 21... Nc2+
{[%clk 0:01:41.5]} 22. Kf2 {[%clk 0:01:59.6]} 22... Nxa1 {[%clk 0:01:42.4]} 1-0